Cogmind - Beta 15 @@@ ROGUE MODE // 2025.06.23 @ 16:05:23 Player: CL-1C0 Result: Destroyed by Y-54 Guardian with Flak Gun Performance ------------- Evolutions (3) 1500 Regions Visited (14) 2800 Robots Destroyed (103) 515 Value Destroyed (7789) 7789 Prototype IDs (32) 640 Alien Tech Used (0) 0 Bonus (6197) 6197 TOTAL SCORE: 19441 Bonus ------- High Alert Combat Kills 894 Follower Combat Kills 1503 Entered Garrisons 1000 Used RIF Installer 2500 Aligned with FarCom 300 Cogmind --------- Core Integrity 0/700 Matter 223/300 Energy 50/100 System Corruption 25% Temperature Cool (18) Movement Rolling (135) Ox3 Location -7/Garrison Parts ------- > --- POWER (1) -------- (None) > --- PROPULSION (2) --- Armored Wheel > --- UTILITY (8) ------ High-capacity Storage Unit Relay Coupler [Swarmer] (27) Relay Coupler [Grunt] (28) Relay Coupler [Sentry] (26) Relay Coupler [Specialist] (23) Relay Coupler [Hunter] (22) > --- WEAPON (2) ------- Remote Datajack Longsword +1 > --- INVENTORY (20) --- Armored Wheel High-capacity Storage Unit Stasis Canceller Relay Coupler [NC] (28) Relay Coupler [NC] (29) Relay Coupler [Swarmer] (28) Relay Coupler [Swarmer] (23) Relay Coupler [Cutter] (31) Relay Coupler [Grunt] (29) Relay Coupler [Grunt] (22) Relay Coupler [Brawler] (30) Relay Coupler [Demolisher] (33) Relay Coupler [Demolisher] (27) Relay Coupler [Demolisher] (18) Relay Coupler [Specialist] (21) Relay Coupler [Hunter] (18) Relay Coupler [Hunter] (14) Remote Datajack Improved Remote Datajack Peak State ------------ > --- POWER ------------ Light Antimatter Reactor > --- PROPULSION ------- Improved Medium Treads Armored Wheel > --- UTILITY ---------- Lightpack 2.0 Advanced Phase Shifter Relay Coupler [Grunt] Relay Coupler [Sentry] Relay Coupler [Specialist] Relay Coupler [Hunter] > --- WEAPON ----------- Remote Datajack Longsword +1 > --- INVENTORY -------- Improved Ion Engine Light Treads High-capacity Matter Pod High-capacity Matter Pod Stasis Canceller Advanced Phase Shifter Light Armor Plating Improved Light Armor Plating Heavy Reactive Plating Relay Coupler [NC] Relay Coupler [NC] Relay Coupler [NC] Relay Coupler [NC] Relay Coupler [NC] Relay Coupler [Swarmer] Relay Coupler [Swarmer] Relay Coupler [Swarmer] Relay Coupler [Swarmer] Relay Coupler [Grunt] Relay Coupler [Grunt] Relay Coupler [Brawler] Relay Coupler [Duelist] Relay Coupler [Duelist] Relay Coupler [Duelist] Relay Coupler [Sentry] Relay Coupler [Sentry] Relay Coupler [Sentry] Relay Coupler [Sentry] Relay Coupler [Sentry] Relay Coupler [Sentry] Relay Coupler [Demolisher] Relay Coupler [Demolisher] Relay Coupler [Demolisher] Relay Coupler [Hunter] Heavy Rocket Launcher Heavy Rocket Launcher Remote Datajack Powered Hammer Katana [Rating: 95] Favorites ----------- Power Light Nuclear Core Engine Ion Engine Power Core Light Nuclear Core Reactor Light Antimatter Reactor Propulsion Light Treads Treads Light Treads Leg Aluminum Leg Wheel Armored Wheel Hover Unit Gravmag System Utility Relay Coupler [Sentry] Device Improved Heat Sink Storage Lightpack 2.0 Processor Target Analyzer Hackware Relay Coupler [Sentry] Protection Light Armor Plating Weapon Longsword +1 Energy Gun Medium Laser Ballistic Gun XL Autogun Subcomponent Launcher Rocket Launcher Special Weapon Remote Datajack Slashing Weapon Longsword +1 Build | -11 -10 -10 -10 -9 -8 -8 -8 -8 -7 -7 -7 -7 -7 -7 ------- Run | Yrd Mat Min Exi Min Mat Gar Mat Gar Fac Gar Fac Gar Fac Gar Slots Evolved 6 | . . . . . 4 . . . 2 . . . . . Power . | . . . . . . . . . . . . . . . Propulsion . | . . . . . . . . . . . . . . . Utility 6 | . . . . . 4 . . . 2 . . . . . Weapon . | . . . . . . . . . . . . . . . Parts Attached 124 | . 8 2 2 . 9 17 3 16 3 15 10 35 2 2 Power 9 | . . . . . 1 2 . 1 . 1 . 4 . . Engine 2 | . . . . . . . . 1 . . . 1 . . Core 6 | . . . . . 1 2 . . . . . 3 . . Reactor 1 | . . . . . . . . . . 1 . . . . Propulsion 25 | . 2 1 1 . . 6 1 4 . 2 . 8 . . Treads 12 | . 2 . . . . 4 1 3 . . . 2 . . Leg 2 | . . . . . . 2 . . . . . . . . Wheel 10 | . . 1 1 . . . . 1 . 2 . 5 . . Hover 1 | . . . . . . . . . . . . 1 . . Flight . | . . . . . . . . . . . . . . . Utility 68 | . 1 . 1 . 2 7 2 10 3 10 9 20 1 2 Device 5 | . . . . . . 2 . 1 . 1 1 . . . Storage 4 | . . . 1 . . 1 . . . . 1 1 . . Processor 2 | . . . . . 1 1 . . . . . . . . Hackware 45 | . . . . . . . 2 6 2 8 6 18 1 2 Protection 12 | . 1 . . . 1 3 . 3 1 1 1 1 . . Artifact . | . . . . . . . . . . . . . . . Weapon 22 | . 5 1 . . 6 2 . 1 . 2 1 3 1 . Energy Gun . | . . . . . . . . . . . . . . . Energy Cannon . | . . . . . . . . . . . . . . . Ballistic Gun 11 | . 4 1 . . 5 . . . . . . 1 . . Ballistic Cannon . | . . . . . . . . . . . . . . . Launcher 3 | . 1 . . . 1 . . . . 1 . . . . Special Weapon 6 | . . . . . . . . 1 . 1 1 2 1 . Impact Weapon . | . . . . . . . . . . . . . . . Slashing Weapon 2 | . . . . . . 2 . . . . . . . . Piercing Weapon . | . . . . . . . . . . . . . . . Special Melee Weapon . | . . . . . . . . . . . . . . . Unidentified Prototypes 1 | . . . . . 1 . . . . . . . . . Parts Lost 36 | . . 1 . . 2 12 1 4 . . . 12 . 4 Power 5 | . . . . . . 1 . . . . . 3 . 1 Propulsion 10 | . . 1 . . 1 4 . 1 . . . 2 . 1 Utility 16 | . . . . . 1 5 . 2 . . . 6 . 2 Weapon 5 | . . . . . . 2 1 1 . . . 1 . . Highest Loss Streak 7 | . . 1 . . 2 4 1 2 . . . 7 . 4 To Critical Strikes 1 | . . . . . . 1 . . . . . . . . Average Backups 25 | . 7 7 10 16 18 30 38 35 37 38 23 17 19 20 Power . | . 1 1 1 1 1 . . . . . . . . . Propulsion 1 | . 2 1 1 1 1 . 1 1 1 . . 1 1 1 Utility 19 | . . 1 2 6 5 22 34 31 32 32 18 13 17 17 Weapon 4 | . 3 3 6 8 9 6 2 3 3 3 1 . . . Tool/Special . | . . . . . . . . . . . . . . . Unused Backups 62 | . 1 . 2 . 2 8 1 7 1 8 6 8 . 18 Power 1 | . . . . . . 1 . . . . . . . . Propulsion 2 | . . . . . . . . . . 1 . . . 1 Utility 47 | . . . 2 . 1 4 1 6 1 7 4 5 . 16 Weapon 10 | . 1 . . . 1 3 . 1 . . 2 2 . . Tool/Special 2 | . . . . . . . . . . . . 1 . 1 Average Slot Usage (%) 81 | . 95 95 79 71 58 72 77 75 80 82 96 93 100 96 Engine 3 | . 14 14 14 14 3 . . 7 7 2 . . . . Core 4 | . . . . . 5 7 9 1 . . . 4 7 6 Reactor 1 | . . . . . . . . . . 4 7 1 . . Treads 9 | . 23 18 3 . . 15 18 12 7 3 . 1 . . Wheel 7 | . . 9 24 28 15 . . 5 7 10 15 11 15 14 Device 3 | . . . . . . 8 3 . . 6 4 . . . Storage 8 | . 14 14 14 14 9 9 9 9 7 7 6 5 7 7 Processor 1 | . . . . . . 3 . . . . . . . . Hackware 17 | . . . . . . . 11 16 33 27 39 48 53 50 Protection 6 | . 12 14 14 14 8 8 9 6 1 2 5 1 . . Ballistic Gun 7 | . 18 23 8 . 10 13 9 3 . . . . . . Special Weapon 2 | . . . . . . . . 5 7 6 7 5 7 7 Slashing Weapon 5 | . . . . . . 4 8 9 7 7 7 6 7 7 Peak Build Rating 95 | . 7 7 13 13 25 64 67 73 80 95 90 62 57 57 Average Rating 53 | . 6 6 9 13 18 58 65 68 78 86 59 53 56 55 On Entrance 40 | 6 6 6 7 13 13 20 64 67 73 79 90 56 57 57 Naked Turns . | . . . . . . . . . . . . . . . Heaviest Build 106 | 14 18 17 90 88 96 92 20 53 21 29 106 102 51 51 Greatest Support 56 | 20 40 40 26 26 26 40 40 40 12 24 24 56 24 24 Greatest Overweight (x) 9 | . . . 3 3 9 9 . 4 1 2 4 7 2 3 Average Overweight (x) 1 | . . . 2 3 4 . . 1 1 1 3 1 2 2 Largest Inventory Capacity 40 | . 8 8 25 25 25 40 40 40 40 40 40 25 20 20 Average Capacity 30 | . 8 8 21 25 25 39 40 40 40 40 25 18 20 20 Most Carried 40 | . 8 8 21 22 25 40 40 40 40 40 39 25 20 20 Average Carried 26 | . 7 7 13 21 20 30 39 36 38 39 23 17 19 19 Final Capacity 40 | 8 8 8 25 25 25 40 40 40 40 40 25 20 20 20 Final Carried 40 | 6 8 7 21 22 25 40 39 39 38 39 25 20 20 19 Class Distribution -------------------- 36% | Hauler-Mutant 34% | Bothacker-Mutant 20% | Mutant 9% | Botlord-Mutant Dominant Class ---------------- Mutant | -10/Materials Mutant | -10/Mines Mutant | -10/Exiles Mutant | -9/Mines Mutant | -8/Materials Hauler-Mutant | -8/Garrison Hauler-Mutant | -8/Materials Bothacker-Mutant | -8/Garrison Bothacker-Mutant | -7/Factory Bothacker-Mutant | -7/Garrison Bothacker-Mutant | -7/Factory Bothacker-Mutant | -7/Garrison Botlord-Mutant | -7/Factory Botlord-Mutant | -7/Garrison Resources | -11 -10 -10 -10 -9 -8 -8 -8 -8 -7 -7 -7 -7 -7 -7 ----------- Run | Yrd Mat Min Exi Min Mat Gar Mat Gar Fac Gar Fac Gar Fac Gar Matter Collected 4220 | 200 263 141 99 . 405 1245 110 319 38 494 . 866 40 . Remotely . | . . . . . . . . . . . . . . . Salvage Created 4926 | . 451 113 . . 277 1352 349 657 225 133 . 1323 . 46 Parts 244 | . 19 9 . . 16 70 19 30 6 6 . 66 . 3 Haulers Intercepted 1 | . 1 . . . . . . . . . . . . . Recyclers Shooed 3 | . . . . . 3 . . . . . . . . . Parts Field Recycled . | . . . . . . . . . . . . . . . Retrieved Matter . | . . . . . . . . . . . . . . . Parts Self-Destructed . | . . . . . . . . . . . . . . . Prevented . | . . . . . . . . . . . . . . . Kills | -11 -10 -10 -10 -9 -8 -8 -8 -8 -7 -7 -7 -7 -7 -7 ------- Run | Yrd Mat Min Exi Min Mat Gar Mat Gar Fac Gar Fac Gar Fac Gar Combat Hostiles Destroyed 90 | . 10 6 . . 10 28 7 8 . 2 . 18 . 1 Melee 30 | . . . . . . 1 5 8 . . . 15 . 1 Guns 32 | . 5 1 . . . 23 1 . . . . 2 . . AOE 28 | . 5 5 . . 10 4 1 . . 2 . 1 . . Classes Destroyed 14 | . 5 . . . 3 2 3 1 . . . . . . Worker 2 | . 1 . . . 1 . . . . . . . . . Builder 1 | . . . . . . . 1 . . . . . . . Tunneler 1 | . . . . . . . 1 . . . . . . . Hauler 1 | . 1 . . . . . . . . . . . . . Recycler 6 | . 3 . . . . . . . 3 . . . . . Watcher 1 | . . . . . 1 . . . . . . . . . Swarmer 19 | . 6 3 . . 3 3 . . . . . 4 . . Grunt 29 | . 4 3 . . 5 12 3 . . 1 . 1 . . Brawler 4 | . . . . . . 3 1 . . . . . . . Duelist 3 | . . . . . 1 2 . . . . . . . . Sentry 14 | . . . . . 1 4 2 4 . . . 3 . . Hunter 2 | . . . . . . . 1 1 . . . . . . Programmer 19 | . . . . . . 4 . 2 . 1 . 11 . 1 Behemoth 1 | . . . . . . . . 1 . . . . . . Best Kill Streak 11 | . 5 5 . . 11 6 4 4 3 2 . 3 . 1 Combat Bots Only 9 | . 3 5 . . 9 6 3 4 . 2 . 3 . 1 Max Kills in Single Turn 3 | . 2 2 . . 2 3 2 1 1 2 . 1 . 1 Gunslinging . | . . . . . . . . . . . . . . . Exploded 3 | . 2 2 . . 2 3 1 . . 2 . 1 . . Melee 1 | . . . . . . 1 1 1 . . . 1 . 1 Uniques/NPCs Destroyed . | . . . . . . . . . . . . . . . Combat | -11 -10 -10 -10 -9 -8 -8 -8 -8 -7 -7 -7 -7 -7 -7 -------- Run | Yrd Mat Min Exi Min Mat Gar Mat Gar Fac Gar Fac Gar Fac Gar Hostile Shots Fired 580 | . 34 14 . . 24 107 24 76 15 58 10 165 5 48 Missed 162 | . 7 3 . . 9 21 8 15 6 24 2 59 2 6 Hits 418 | . 27 11 . . 15 86 16 61 9 34 8 106 3 42 Melee 7 | . . . . . . 2 . . . . . 4 1 . Projectile 411 | . 27 11 . . 15 84 16 61 9 34 8 102 2 42 AOE 1 | . . . . . . . . . . . . 1 . . Critical Strikes 26 | . . . . . 1 5 4 6 . . 2 7 . 1 Actively Blocked 1 | . . . . . . 1 . . . . . . . . Damage Taken 5858 | . 320 163 . . 266 1409 233 903 110 454 165 1367 68 400 Core 1319 | . 59 20 . . 65 257 46 172 27 100 29 363 35 146 Absorbed by Shields 276 | . . . . . . . . 4 . 4 . 225 . 43 Redirected to Shielding 21 | . . . . . . 21 . . . . . . . . Core Remaining (%) 56 | 100 . . . 68 . . . 1 . . . . . . Volleys Fired 341 | . 23 11 . . 45 121 5 24 10 38 8 44 6 6 Largest 2 | . 2 2 . . 2 2 1 1 1 1 1 1 1 1 Hottest 40 | . 40 40 . . 40 40 33 20 5 39 5 39 5 5 Shots Fired 467 | . 39 16 . . 47 223 5 25 10 38 8 44 6 6 Gun 291 | . 32 10 . . 4 219 3 11 . . . 12 . . Cannon . | . . . . . . . . . . . . . . . Launcher 70 | . 7 6 . . 43 4 2 . . 6 . 2 . . Special 106 | . . . . . . . . 14 10 32 8 30 6 6 Kinetic 291 | . 32 10 . . 4 219 3 11 . . . 12 . . Thermal . | . . . . . . . . . . . . . . . Explosive 70 | . 7 6 . . 43 4 2 . . 6 . 2 . . Electromagnetic . | . . . . . . . . . . . . . . . Robot Hit Streak 19 | . 11 11 . . 4 16 3 5 8 9 17 19 3 3 Robot Miss Streak 4 | . 1 2 . . 4 2 3 1 1 2 . 2 1 2 Penetration Max . | . . . . . . . . . . . . . . . Secondary Targets 4 | . . 1 . . . 3 . . . . . . . . Max Gunslinging Chain 1 | . . 1 . . . 1 . . . . . . . . Shots Hit Robots 395 | . 27 10 . . 16 117 12 58 11 31 8 92 4 9 Core Hits 174 | . 25 13 . . 22 50 12 13 2 6 . 30 . 1 Critical Kills . | . . . . . . . . . . . . . . . Critical Parts Destroyed . | . . . . . . . . . . . . . . . Critical Strikes 17 | . . . . . . . 2 2 . 1 . 11 . 1 Sever 17 | . . . . . . . 2 2 . 1 . 11 . 1 Melee Attacks 281 | . . . . . . 73 14 50 16 50 . 71 . 7 Impact . | . . . . . . . . . . . . . . . Slashing 281 | . . . . . . 73 14 50 16 50 . 71 . 7 Piercing . | . . . . . . . . . . . . . . . Sneak Attacks 20 | . . . . . . . . 10 3 . . 7 . . Combat Hostiles 13 | . . . . . . . . 7 . . . 6 . . Follow-up Attacks . | . . . . . . . . . . . . . . . Damage Inflicted 12928 | . 779 423 . . 1072 2555 679 2673 280 471 . 3770 . 226 Guns 3004 | . 238 48 . . 80 2296 21 164 . . . 157 . . Cannons . | . . . . . . . . . . . . . . . Explosions 2718 | . 536 375 . . 992 210 232 . . 238 . 135 . . Melee 7201 | . . . . . . 49 426 2509 280 233 . 3478 . 226 Ramming 5 | . 5 . . . . . . . . . . . . . Kinetic 3004 | . 238 48 . . 80 2296 21 164 . . . 157 . . Thermal . | . . . . . . . . . . . . . . . Explosive 2718 | . 536 375 . . 992 210 232 . . 238 . 135 . . Electromagnetic . | . . . . . . . . . . . . . . . Impact . | . . . . . . . . . . . . . . . Slashing 7201 | . . . . . . 49 426 2509 280 233 . 3478 . 226 Piercing . | . . . . . . . . . . . . . . . Highest Corruption 25 | . 5 5 5 5 . 9 9 16 . . . 22 22 25 Average Corruption 9 | . 3 5 5 5 . 6 9 13 . . . 10 22 22 Corruption Purged . | . . . . . . . . . . . . . . . Corruption Blocked . | . . . . . . . . . . . . . . . Effects 195 | . 8 6 7 3 . 64 11 35 . . . 39 10 12 Message Errors 49 | . 3 3 2 1 . 19 1 10 . . . 5 3 2 Matter Fused 62 | . 3 . 3 1 . 24 3 12 . . . 11 3 2 Heat Flow Errors 19 | . . 1 2 . . 4 1 3 . . . 4 2 2 Energy Discharges 21 | . 1 1 . . . 2 4 3 . . . 7 2 1 Parts Rejected 1 | . . . . . . 1 . . . . . . . . Parts Fused 1 | . . . . . . 1 . . . . . . . . Data Loss (minor) 22 | . . . . . . 7 1 2 . . . 9 . 3 Data Loss (major) 13 | . . . . 1 . 4 . 4 . . . 3 . 1 Misfires 3 | . . . . . . 2 . 1 . . . . . . Alerts 4 | . 1 1 . . . . 1 . . . . . . 1 Overload Shots . | . . . . . . . . . . . . . . . Overflow Damage 615 | . . . . . 21 8 . 161 75 46 . 256 . 48 Projectiles . | . . . . . . . . . . . . . . . Explosions 75 | . . . . . 21 8 . . . 46 . . . . Melee 540 | . . . . . . . . 161 75 . . 256 . 48 Knockbacks . | . . . . . . . . . . . . . . . Impact . | . . . . . . . . . . . . . . . Kinetic . | . . . . . . . . . . . . . . . Secondary . | . . . . . . . . . . . . . . . Self-Inflicted Damage 159 | . 40 4 . . 46 . . . . 28 . 41 . . Shots 6 | . 1 1 . . 2 . . . . 1 . 1 . . Rammed 1 | . 1 . . . . . . . . . . . . . Targets Rammed 1 | . 1 . . . . . . . . . . . . . Kicked . | . . . . . . . . . . . . . . . Crushed . | . . . . . . . . . . . . . . . Highest Temperature 243 | . 36 225 237 . 18 243 111 184 . . 9 242 213 201 Average Temperature 71 | . 12 103 106 . 4 91 44 80 . . 6 87 93 103 Received Heat Transfer 1416 | . 96 72 . . 108 612 99 78 51 123 81 50 9 37 Effects 1 | . . . . . . . . . . . . . . 1 Interference 1 | . . . . . . . . . . . . . . 1 Siege Activations . | . . . . . . . . . . . . . . . Martial Activations . | . . . . . . . . . . . . . . . Shielding Activations . | . . . . . . . . . . . . . . . Robots Disrupted . | . . . . . . . . . . . . . . . Combat Hostiles . | . . . . . . . . . . . . . . . Robots Corrupted . | . . . . . . . . . . . . . . . Combat Hostiles . | . . . . . . . . . . . . . . . Parts Fried . | . . . . . . . . . . . . . . . Impact Corruptions . | . . . . . . . . . . . . . . . Robots Melted . | . . . . . . . . . . . . . . . Combat Hostiles . | . . . . . . . . . . . . . . . Parts Melted 1 | . . . . . . . . . . . . 1 . . Heat Transferred . | . . . . . . . . . . . . . . . Parts Sabotaged . | . . . . . . . . . . . . . . . Parts Stolen . | . . . . . . . . . . . . . . . Parts Stripped . | . . . . . . . . . . . . . . . Power Chain Reactions . | . . . . . . . . . . . . . . . Alert | -11 -10 -10 -10 -9 -8 -8 -8 -8 -7 -7 -7 -7 -7 -7 ------- Run | Yrd Mat Min Exi Min Mat Gar Mat Gar Fac Gar Fac Gar Fac Gar Maximum Alert Level 5 | . 1 1 . . 1 5 4 4 2 4 2 3 1 1 Low Security (%) 17 | . 99 90 . 100 71 7 . . . . . . . 45 Level 1 17 | . . 9 . . 28 10 . . . 5 . 53 100 54 Level 2 22 | . . . . . . 16 . . 100 27 99 37 . . Level 3 24 | . . . . . . 21 53 93 . 52 . 9 . . Level 4 10 | . . . . . . 23 46 6 . 13 . . . . Level 5 6 | . . . . . . 20 . . . . . . . . High Security . | . . . . . . . . . . . . . . . Max Security . | . . . . . . . . . . . . . . . Peak Influence 2119 | . 198 221 . . 248 2119 1217 1183 621 1110 582 707 371 224 Initial 1032 | . . 28 . . . 130 1032 779 620 348 582 313 371 175 Average 671 | . 119 111 . . 87 1024 1094 970 567 776 480 434 311 195 Influence Increases 6168 | . 318 311 . . 401 2109 297 484 28 1022 224 894 . 80 Destroy 0b10 Robot/C 2570 | . 200 180 . . 200 560 140 260 . 440 140 420 . 30 Destroy 0b10 Robot/NC 104 | . 25 . . . 10 5 10 10 15 5 . 24 . . Destroy Leader 288 | . 32 40 . . 42 30 50 10 . 40 20 24 . . Allied During Kill 295 | . . 6 . . . . . 11 . 187 57 33 . 1 Successful Hack 31 | . . . . . . . . . . 7 7 6 . 11 Disable Machine 135 | . 15 45 . . 15 . 30 30 . . . . . . Anti-Garrison Action 1991 | . . . . . . 1300 . 150 . 200 . 303 . 38 Destroy Structure 583 | . 46 40 . . 119 199 22 13 13 98 . 33 . . Partial Spotted 15 | . . . . . 15 . . . . . . . . . Lose Combat Pursuer 156 | . . . . . . 15 45 . . 45 . 51 . . Influence Decreases 6033 | . 244 174 211 . 201 190 1217 500 713 410 886 635 456 196 Entered New Map 3622 | . . 46 211 . . 70 1087 420 563 150 528 135 336 76 Time Decay 1151 | . 244 118 . . 181 . 120 . 150 . 238 . 100 . Lost Part 360 | . . 10 . . 20 120 10 40 . . . 120 . 40 Lost Ally 900 | . . . . . . . . 40 . 260 120 380 20 80 Squads Dispatched 4 | . . . . . 1 . 2 . . . 1 . . . Investigation . | . . . . . . . . . . . . . . . Extermination . | . . . . . . . . . . . . . . . Reinforcement 2 | . . . . . 1 . . . . . 1 . . . Assault . | . . . . . . . . . . . . . . . Garrison 2 | . . . . . . . 2 . . . . . . . Intercept . | . . . . . . . . . . . . . . . Searches Triggered . | . . . . . . . . . . . . . . . Construction Impeded 1 | . . . . . 1 . . . . . . . . . Haulers Reinforced . | . . . . . . . . . . . . . . . Active Scanning Responses . | . . . . . . . . . . . . . . . Cargo Convoy Interrupts . | . . . . . . . . . . . . . . . Stealth | -11 -10 -10 -10 -9 -8 -8 -8 -8 -7 -7 -7 -7 -7 -7 --------- Run | Yrd Mat Min Exi Min Mat Gar Mat Gar Fac Gar Fac Gar Fac Gar Distress Signals 2 | . . . . . 1 . 1 . . . . . . . Communications Jammed . | . . . . . . . . . . . . . . . Distress Signals . | . . . . . . . . . . . . . . . Times Spotted 197 | . 13 8 . . 14 28 8 20 5 33 9 45 3 11 Peak Tracking Total 8 | . 4 5 . . 4 4 6 5 3 7 3 8 3 5 Tactical Retreats 9 | . . . . . . 1 2 . . 2 . 4 . . Traps | -11 -10 -10 -10 -9 -8 -8 -8 -8 -7 -7 -7 -7 -7 -7 ------- Run | Yrd Mat Min Exi Min Mat Gar Mat Gar Fac Gar Fac Gar Fac Gar Traps Triggered 37 | . 6 . . . . 4 . 2 . 9 1 12 1 2 Indirectly . | . . . . . . . . . . . . . . . Trap Hack Attempts . | . . . . . . . . . . . . . . . Triggered . | . . . . . . . . . . . . . . . Disarmed . | . . . . . . . . . . . . . . . Reprogrammed . | . . . . . . . . . . . . . . . Reused . | . . . . . . . . . . . . . . . Traps Extracted . | . . . . . . . . . . . . . . . Installed . | . . . . . . . . . . . . . . . Triggered . | . . . . . . . . . . . . . . . Machines | -11 -10 -10 -10 -9 -8 -8 -8 -8 -7 -7 -7 -7 -7 -7 ---------- Run | Yrd Mat Min Exi Min Mat Gar Mat Gar Fac Gar Fac Gar Fac Gar Machines Disabled 29 | . 1 3 . . 1 6 2 5 . 4 . 6 . 1 Max in Single Turn 1 | . 1 1 . . 1 1 1 1 . 1 . 1 . 1 Garrison Relay 20 | . . . . . . 6 . 3 . 4 . 6 . 1 Machines Repaired . | . . . . . . . . . . . . . . . Machines Dismantled . | . . . . . . . . . . . . . . . Machines Sabotaged . | . . . . . . . . . . . . . . . Overloaded Fab Kills . | . . . . . . . . . . . . . . . Hacking | -11 -10 -10 -10 -9 -8 -8 -8 -8 -7 -7 -7 -7 -7 -7 --------- Run | Yrd Mat Min Exi Min Mat Gar Mat Gar Fac Gar Fac Gar Fac Gar Machines Accessed 16 | . . . 1 . 3 1 2 . 1 2 2 2 1 1 Terminals 10 | . . . . . 2 1 1 . . 2 1 2 . 1 Fabricators . | . . . . . . . . . . . . . . . Repair Stations . | . . . . . . . . . . . . . . . Recycling Units . | . . . . . . . . . . . . . . . Scanalyzers . | . . . . . . . . . . . . . . . Garrison Access 5 | . . . . . 1 . 1 . 1 . 1 . 1 . Total Hacks 33 | . . . 1 . 6 2 6 . 1 4 7 4 1 1 Successful 14 | . . . 1 . 2 . 2 . 1 1 4 1 1 1 Failed 19 | . . . . . 4 2 4 . . 3 3 3 . . Catastrophic 4 | . . . . . 1 . . . . 2 . 1 . . Database Lockouts . | . . . . . . . . . . . . . . . Manual 10 | . . . 1 . 1 . 5 . . . 3 . . . Terminals 26 | . . . . . 4 2 5 . . 4 6 4 . 1 Fabricators . | . . . . . . . . . . . . . . . Repair Stations . | . . . . . . . . . . . . . . . Recycling Units . | . . . . . . . . . . . . . . . Scanalyzers . | . . . . . . . . . . . . . . . Garrison Access 6 | . . . . . 2 . 1 . 1 . 1 . 1 . Terminal Hacks 9 | . . . 1 . 1 . 1 . . 1 3 1 . 1 Prototype ID Bank 1 | . . . . . . . . . . . 1 . . . Open Door 2 | . . . . . . . . . . 1 . 1 . . Level Access Points 1 | . . . . . . . 1 . . . . . . . Branch Access Points 2 | . . . . . 1 . . . . . 1 . . . Emergency Access Points 1 | . . . . . . . . . . . . . . 1 Terminal Index 1 | . . . . . . . . . . . 1 . . . Proto ID Catalog 1 | . . . 1 . . . . . . . . . . . Fabricator Hacks . | . . . . . . . . . . . . . . . Repair Station Hacks . | . . . . . . . . . . . . . . . Recycling Unit Hacks . | . . . . . . . . . . . . . . . Scanalyzer . | . . . . . . . . . . . . . . . Garrison Access Hacks 5 | . . . . . 1 . 1 . 1 . 1 . 1 . Unlock Access 5 | . . . . . 1 . 1 . 1 . 1 . 1 . Unauthorized Hacks . | . . . . . . . . . . . . . . . Terminals . | . . . . . . . . . . . . . . . Fabricators . | . . . . . . . . . . . . . . . Repair Stations . | . . . . . . . . . . . . . . . Recycling Units . | . . . . . . . . . . . . . . . Scanalyzers . | . . . . . . . . . . . . . . . Garrison Access . | . . . . . . . . . . . . . . . Data Cores Recovered . | . . . . . . . . . . . . . . . Used . | . . . . . . . . . . . . . . . Hacking Detections 9 | . . . . . 3 1 1 . 1 1 1 1 . . Full Trace Events 1 | . . . . . . . . . . . . 1 . . Feedback Events . | . . . . . . . . . . . . . . . Feedback Blocked . | . . . . . . . . . . . . . . . Robot Schematics Acquired . | . . . . . . . . . . . . . . . Robots Built . | . . . . . . . . . . . . . . . Authchips . | . . . . . . . . . . . . . . . Time . | . . . . . . . . . . . . . . . Total Robot Build Rating . | . . . . . . . . . . . . . . . Part Schematics Acquired . | . . . . . . . . . . . . . . . Parts Built . | . . . . . . . . . . . . . . . Authchips . | . . . . . . . . . . . . . . . Time . | . . . . . . . . . . . . . . . Total Part Build Rating . | . . . . . . . . . . . . . . . Parts Repaired . | . . . . . . . . . . . . . . . Time . | . . . . . . . . . . . . . . . Parts Recycled . | . . . . . . . . . . . . . . . Recycled Matter . | . . . . . . . . . . . . . . . Retrieved Matter . | . . . . . . . . . . . . . . . Retrieved Components . | . . . . . . . . . . . . . . . Parts Scanalyzed . | . . . . . . . . . . . . . . . Part Schematics Acquired . | . . . . . . . . . . . . . . . Parts Damaged . | . . . . . . . . . . . . . . . Bothacking | -11 -10 -10 -10 -9 -8 -8 -8 -8 -7 -7 -7 -7 -7 -7 ------------ Run | Yrd Mat Min Exi Min Mat Gar Mat Gar Fac Gar Fac Gar Fac Gar Used RIF Installer 5 | . . . . . . 1 . . . 1 . 2 . 1 Code Merge 1 | . . . . . . . . . . . . . . 1 Command Fork 1 | . . . . . . . . . . . . 1 . . Threat Obfuscator 1 | . . . . . . . . . . . . 1 . . Structural Interface 1 | . . . . . . . . . . 1 . . . . Robots Hacked 64 | . . . . . . . . 8 5 19 6 19 3 4 Non-combat 5 | . . . . . . . . . 3 . 2 . . . Combat 59 | . . . . . . . . 8 2 19 4 19 3 4 Robot Hacks Applied 74 | . . . . . . . . 10 7 19 8 22 4 4 parse_system 3 | . . . . . . . . . . . . 3 . . map_walls 2 | . . . . . . . . . 1 . 1 . . . drop_inventory 3 | . . . . . . . . . 2 . 1 . . . find_garrison 3 | . . . . . . . . . 1 . 1 . 1 . scatter_targeting 1 | . . . . . . . . . . 1 . . . . link_complan 1 | . . . . . . . . . . . 1 . . . disrupt_area 1 | . . . . . . . . . . 1 . . . . amplify_resonance 1 | . . . . . . . . . . . . . . 1 wipe_record 1 | . . . . . . . . . . . 1 . . . reboot_system 6 | . . . . . . . . 3 . 1 . 2 . . overwrite_iff 21 | . . . . . . . . 5 . 5 1 9 . 1 formatsys_low 1 | . . . . . . . . . 1 . . . . . formatsys_high 30 | . . . . . . . . 2 2 11 2 8 3 2 Relay Couplers Released 82 | . . . . . . 24 . 12 . 17 . 26 . 3 Machine Destruction 82 | . . . . . . 24 . 12 . 17 . 26 . 3 Attached 43 | . . . . . . . . 6 2 8 6 18 1 2 Merged Code Value 8 | . . . . . . . . . . . . . . 8 Fabnet Peak Effective % . | . . . . . . . . . . . . . . . Robots Rewired 9 | . . . . . . . . . . 6 . 3 . . Allies Hacked 1 | . . . . . . . . . . . . 1 . . Hacks Repelled . | . . . . . . . . . . . . . . . Allies | -11 -10 -10 -10 -9 -8 -8 -8 -8 -7 -7 -7 -7 -7 -7 -------- Run | Yrd Mat Min Exi Min Mat Gar Mat Gar Fac Gar Fac Gar Fac Gar Total Allies 68 | . . 1 . . . . . 7 3 22 3 25 3 4 Largest Group 8 | . . 1 1 . . . . 4 2 8 7 6 2 2 Highest-Rated Group 220 | . . 31 31 . . . . 156 42 196 163 220 42 64 Highest-Rated Ally 85 | . . 31 31 . . . . 85 32 32 32 80 30 32 Total Orders . | . . . . . . . . . . . . . . . Ally Attacks 249 | . . 8 . . . . . 23 . 116 34 61 . 7 Total Damage 5355 | . . 209 . . . . . 358 . 1988 596 2096 . 108 Kills 49 | . . 3 . . . . . 5 . 20 7 13 . 1 Allies Corrupted 4 | . . . . . . . . . . . . 4 . . Allies Melted 1 | . . . . . . . . . . 1 . . . . Intel | -11 -10 -10 -10 -9 -8 -8 -8 -8 -7 -7 -7 -7 -7 -7 ------- Run | Yrd Mat Min Exi Min Mat Gar Mat Gar Fac Gar Fac Gar Fac Gar Active Infowar (turns) . | . . . . . . . . . . . . . . . Robot Analysis Total . | . . . . . . . . . . . . . . . Derelict Logs Recovered 2 | . . 1 . 1 . . . . . . . . . . Drone Launches . | . . . . . . . . . . . . . . . Drone Recoveries . | . . . . . . . . . . . . . . . Exploration | -11 -10 -10 -10 -9 -8 -8 -8 -8 -7 -7 -7 -7 -7 -7 ------------- Run | Yrd Mat Min Exi Min Mat Gar Mat Gar Fac Gar Fac Gar Fac Gar Turns Passed 10314 | . 641 246 369 190 516 3224 259 887 300 1079 508 1634 211 250 Spaces Moved 6067 | 1 361 186 285 141 254 1668 119 520 234 708 315 975 165 135 Core 26 | . . . . . . 4 . . . . . 22 . . Treads 2116 | . 281 39 . . . 1430 119 155 . . . 92 . . Legs 267 | 1 80 . . . . 186 . . . . . . . . Wheels 3543 | . . 147 285 141 254 48 . 365 234 708 315 746 165 135 Hover 115 | . . . . . . . . . . . . 115 . . Flight . | . . . . . . . . . . . . . . . Fastest Speed 50 | 120 120 100 100 135 135 120 160 105 105 90 90 50 120 120 Average Speed 136 | 120 151 112 125 135 155 161 160 131 105 107 144 122 120 120 Slowest Speed 260 | 120 160 160 135 135 215 260 160 160 105 120 150 195 120 135 Overloaded Moves . | . . . . . . . . . . . . . . . Propulsion Burnouts . | . . . . . . . . . . . . . . . Robots Hopped . | . . . . . . . . . . . . . . . Potential Cave-ins . | . . . . . . . . . . . . . . . Cave-ins Triggered . | . . . . . . . . . . . . . . . Exploration Rate (%) 42 | 2 69 49 68 43 18 94 14 47 10 82 12 96 9 28 Regions Visited 14 Branch Regions 3 Pre-discovered Areas . | . . . . . . . . . . . . . . . Known Exits Taken 5 | . . . . . 1 . 1 . 1 . 1 . 1 . Unknown Exits Taken 5 | 1 1 1 1 1 . . . . . . . . . . Scrap Searched . | . . . . . . . . . . . . . . . Spaces Dug 148 | . . . . . 41 54 4 3 13 33 . . . . Terrain Destroyed 447 | . 47 36 . . 164 75 22 3 13 70 . 17 . . Melee 107 | . . . . . . 54 4 3 13 33 . . . . Projectile . | . . . . . . . . . . . . . . . AOE 340 | . 47 36 . . 164 21 18 . . 37 . 17 . . Terrain Rammed . | . . . . . . . . . . . . . . . Walls Destroyed . | . . . . . . . . . . . . . . . Machines Disabled . | . . . . . . . . . . . . . . . Actions | -11 -10 -10 -10 -9 -8 -8 -8 -8 -7 -7 -7 -7 -7 -7 --------- Run | Yrd Mat Min Exi Min Mat Gar Mat Gar Fac Gar Fac Gar Fac Gar Total 7529 | . 419 208 297 141 324 2009 168 666 268 952 367 1323 174 213 Wait 225 | . 8 8 . . . 69 24 22 . 26 . 26 . 42 Move 6058 | . 360 185 284 140 254 1667 119 519 234 707 315 974 165 135 Hop . | . . . . . . . . . . . . . . . Pick Up 165 | . 3 1 8 1 9 39 . 14 3 19 26 40 . 2 Fast Attach 55 | . 9 . . . 2 13 2 5 1 4 4 15 . . Attach 44 | . 2 2 . . 2 6 1 8 2 6 1 12 . 2 Detach 9 | . 1 . 2 . . 2 . 2 . 1 . 1 . . Swap 66 | . 6 1 2 . 10 6 2 3 . 9 5 20 2 . Drop 83 | . 6 . 1 . 2 13 1 12 1 10 8 27 . 2 Fire 341 | . 23 11 . . 45 121 5 24 10 38 8 44 6 6 Melee 281 | . . . . . . 73 14 50 16 50 . 71 . 7 Ram . | . . . . . . . . . . . . . . . Kick . | . . . . . . . . . . . . . . . Crush 1 | . 1 . . . . . . . . . . . . . Escape Stasis 56 | . . . . . . . . 7 . 16 . 17 . 16 Rewire 145 | . . . . . . . . . 1 66 . 76 1 1 Trap . | . . . . . . . . . . . . . . . Miscellaneous . | . . . . . . . . . . . . . . . Route ------- -11/Scrapyard -10/Materials (discovered 3 exits: [*Mat x2] / [*Min]) -10/Mines -10/Exiles -9/Mines -8/Materials -8/Garrison (discovered 3 exits: *Mat x3) -8/Materials (discovered 4 exits: Fac x3 / Gar) -8/Garrison (discovered 2 exits: *Fac x2) -7/Factory (discovered 2 exits: Sto / Gar) -7/Garrison (discovered 3 exits: *Fac x3) -7/Factory (discovered 4 exits: Sto / Low x2 / Gar) -7/Garrison (discovered 4 exits: [*Fac x3] / *Fac) -7/Factory -7/Garrison History --------- Turn | Location | Event 1 | -11/Scrapyard | Discovered new exit (range 0) 1 | -11/Scrapyard | Entered Materials 172 | -10/Materials | Discovered new exit (range 13) 317 | -10/Materials | Build established: Mutant 430 | -10/Materials | Discovered new exit (range 8) 548 | -10/Materials | Discovered new exit (range 16) 642 | -10/Materials | Entered Mines 732 | -10/Mines | Assembled infested the area 737 | -10/Mines | Assisted by a Guerilla fighting off Assembled 766 | -10/Mines | Escorted by a lone wolf Derelict 803 | -10/Mines | Learned Materials terminal intel 884 | -10/Mines | Deemed a non-threat by the Exiles lab entrance 884 | -10/Mines | Discovered new exit (range 5) 888 | -10/Mines | Entered Exiles 888 | -10/Exiles | Accompanied by 1 ally 912 | -10/Exiles | Met 8R-AWN 929 | -10/Exiles | Met EX-HEX 997 | -10/Exiles | Met EX-DEC 1033 | -10/Exiles | Met EX-BIN 1050 | -10/Exiles | Aligned with FarCom system 1051 | -10/Exiles | Given EX-Vault access code 1083 | -10/Exiles | Opened EX-Vault 1091 | -10/Exiles | Found XL Autogun Array 1095 | -10/Exiles | Found Longsword +1 1099 | -10/Exiles | Found Lightpack 2.0 1128 | -10/Exiles | Warned to stay clear of 0b10 Research branches 1246 | -10/Exiles | Discovered new exit (range 10) 1257 | -10/Exiles | Stole three prototypes: Lightpack 2.0, XL Autogun Array, Longsword +1 1257 | -10/Exiles | Entered Mines 1305 | -9/Mines | Met a Derelict bent on vengeance 1424 | -9/Mines | Received a Rocket Launcher from a helpful Derelict 1434 | -9/Mines | Discovered new exit (range 12) 1447 | -9/Mines | Entered Materials 1447 | -8/Materials | Evolved 4 slots: Utility x4 1448 | -8/Materials | Loaded intel: 12 terminal locations 1849 | -8/Materials | Destroyed 9 combat bots 1963 | -8/Materials | Identified exit to Garrison 1963 | -8/Materials | Entered Garrison 2116 | -8/Garrison | Lost 3 parts (2n1w) 2139 | -8/Garrison | Triggered checkpoint 2331 | -8/Garrison | Garrison Relay disabled 2386 | -8/Garrison | Build established: Hauler-Mutant 2431 | -8/Garrison | Triggered checkpoint 2485 | -8/Garrison | Triggered checkpoint 2523 | -8/Garrison | Triggered checkpoint 2611 | -8/Garrison | Discovered new exit (range 8) 2691 | -8/Garrison | Triggered checkpoint 2721 | -8/Garrison | Garrison Relay disabled 2884 | -8/Garrison | Discovered new exit (range 10) 3055 | -8/Garrison | Triggered checkpoint 3089 | -8/Garrison | Garrison Relay disabled 3244 | -8/Garrison | Discovered new exit (range 15) 3329 | -8/Garrison | Triggered checkpoint 3352 | -8/Garrison | Garrison Relay disabled 3586 | -8/Garrison | Core integrity fell below 50% 3625 | -8/Garrison | Lost 4 parts (2n1u1w) 3886 | -8/Garrison | Found Hvy. Reactive Plating 4308 | -8/Garrison | Garrison Relay disabled 4323 | -8/Garrison | Garrison Relay disabled 5057 | -8/Garrison | Installed Relay Interface Framework 5187 | -8/Garrison | Entered Materials 5294 | -8/Materials | Identified exit to Factory 5298 | -8/Materials | Garrison activated, responded to threat 5446 | -8/Materials | Identified exit to Garrison 5446 | -8/Materials | Entered Garrison 5660 | -8/Garrison | Triggered checkpoint 5678 | -8/Garrison | Garrison Relay disabled 5778 | -8/Garrison | Triggered checkpoint 5802 | -8/Garrison | System corruption reached 10% 5814 | -8/Garrison | Core integrity fell below 20% 5867 | -8/Garrison | Discovered exit to Factory (range 10) 5986 | -8/Garrison | Triggered checkpoint 6028 | -8/Garrison | Spotted B-75 Beast 6065 | -8/Garrison | Destroyed B-75 Beast 6114 | -8/Garrison | Build established: Bothacker-Mutant 6123 | -8/Garrison | Discovered exit to Factory (range 10) 6240 | -8/Garrison | Triggered checkpoint 6278 | -8/Garrison | Garrison Relay disabled 6290 | -8/Garrison | Garrison Relay disabled 6333 | -8/Garrison | Entered Factory 6333 | -7/Factory | Evolved 2 slots: Utility x2 6334 | -7/Factory | Identified exit to Storage 6335 | -7/Factory | FarCom data flow suspended 6633 | -7/Factory | Identified exit to Garrison 6633 | -7/Factory | Entered Garrison 6649 | -7/Garrison | Triggered checkpoint 6677 | -7/Garrison | Triggered checkpoint 6690 | -7/Garrison | Garrison Relay disabled 6878 | -7/Garrison | Triggered checkpoint 6882 | -7/Garrison | Triggered checkpoint 6911 | -7/Garrison | Triggered checkpoint 6987 | -7/Garrison | Garrison Relay disabled 7071 | -7/Garrison | Discovered new exit (range 10) 7083 | -7/Garrison | Triggered checkpoint 7163 | -7/Garrison | Garrison Relay disabled 7247 | -7/Garrison | Triggered checkpoint 7255 | -7/Garrison | Triggered checkpoint 7296 | -7/Garrison | Lost 5 allies 7324 | -7/Garrison | Triggered checkpoint 7369 | -7/Garrison | Lost 3 allies 7409 | -7/Garrison | Garrison Relay disabled 7453 | -7/Garrison | Discovered new exit (range 10) 7646 | -7/Garrison | Expanded RIF knowledge: Structural Interface 7662 | -7/Garrison | Discovered new exit (range 10) 7712 | -7/Garrison | Entered Factory 7712 | -7/Factory | Accompanied by 6 allies 8001 | -7/Factory | Identified exit to Lower Caves 8195 | -7/Factory | Lost 5 allies 8220 | -7/Factory | Identified exit to Garrison 8220 | -7/Factory | Entered Garrison 8266 | -7/Garrison | Triggered checkpoint 8271 | -7/Garrison | Discovered new exit (range 5) 8436 | -7/Garrison | Expanded RIF knowledge: Threat Obfuscation 8458 | -7/Garrison | Triggered checkpoint 8471 | -7/Garrison | Garrison Relay disabled 8600 | -7/Garrison | Triggered checkpoint 8605 | -7/Garrison | Triggered checkpoint 8629 | -7/Garrison | P-60 Hacker assimilated allied S-27 Virus 8661 | -7/Garrison | Lost 11 allies 8717 | -7/Garrison | Lost 7 parts (2p2n2u1w) 8772 | -7/Garrison | Discovered new exit (range 4) 8856 | -7/Garrison | Triggered checkpoint 8883 | -7/Garrison | Garrison Relay disabled 8944 | -7/Garrison | Triggered checkpoint 9140 | -7/Garrison | Rescued a captive Derelict 9140 | -7/Garrison | Rescued a captive Derelict 9150 | -7/Garrison | Triggered checkpoint 9157 | -7/Garrison | Discovered new exit (range 13) 9276 | -7/Garrison | Core integrity fell below 50% 9298 | -7/Garrison | System corruption reached 10% 9328 | -7/Garrison | Expanded RIF knowledge: Command Fork 9442 | -7/Garrison | Lost 3 parts (3u) 9512 | -7/Garrison | Discovered new exit (range 3) 9530 | -7/Garrison | Triggered checkpoint 9543 | -7/Garrison | Found embedded Infiltrators 9615 | -7/Garrison | Lost 5 allies 9624 | -7/Garrison | Build established: Botlord-Mutant 9657 | -7/Garrison | Garrison Relay disabled 9671 | -7/Garrison | Garrison Relay disabled 9706 | -7/Garrison | Garrison Relay disabled 9854 | -7/Garrison | Entered Factory 10065 | -7/Factory | Identified exit to Garrison 10065 | -7/Factory | Entered Garrison 10065 | -7/Garrison | Accompanied by 1 ally 10086 | -7/Garrison | Expanded RIF knowledge: Code Merge 10127 | -7/Garrison | Garrison Relay disabled 10148 | -7/Garrison | Core integrity fell below 20% 10151 | -7/Garrison | Triggered checkpoint 10253 | -7/Garrison | Triggered checkpoint 10259 | -7/Garrison | Triggered checkpoint 10260 | -7/Garrison | Triggered checkpoint 10299 | -7/Garrison | Lost 4 allies 10315 | -7/Garrison | Destroyed by Y-54 Guardian with Flak Gun Last Messages --------------- 10265_ S-27 Virus Lgt. Nuclear Core critical resonance detonation. 10265_ S-27 Virus destroyed. 10266_ Jacked S-27 Virus... >>overwrite_iff Rewriting IFF filter. 10266_ Forked command to additional Y-54 Guardian... >>overwrite_iff Rewriting IFF filter. 10268_ S-27 Virus destroyed. 10279_ System corrupted: Component data lost. 10295_ System corrupted: Matter fused (-7). 10299_ Relay Coupler [Duelist] destroyed. 10299_ P-60 Hacker Gravmag System severed. 10303_ Arm. Wheel destroyed. 10303_ Destroyed Shock Rifle. 10305_ P-60 Hacker destroyed. 10306_ Mic. Fission Core destroyed. 10309_ Relay Coupler [Sentry] destroyed. 10311_ System corrupted: Energy discharge (-35). 10312_ Destroyed Imp. Heat Sink. Map ----- +----------------------------------------------------+ | ?????????????????????????????????????????????????? | | ???????+???+??+??????????????????????????????????? | | ?????????????????????+?????????????+?????????????? | | ?????????????????????? ?????????????????????????? | | +????????????????????? #????????????????????????? | | ?????????????????????? #??????????+?????????????? | | ????????????????????## ##?? "#??????????????????? | | ????????????????+???# ? ????????????????? | | ???????????+???????? ? ???+?????????????? | | +??????????????????? [ ?? ??????????????? | | ????????????????????#[ # #? ??????????????? | | ??????????????????### = # ## #?????????????? | | ??????????????????# "?????????????? | | ??????????????????? = "?????????????? | | ???????????????????!%= * ??????????????? | | ????????????????????[ %= ????????????????? | | ????????????????????#% ## #????#?????????????? | | """"???????##########[% ## ## ###???????????? | | !!!"???????# + = ??????????? | | ???????# + ??????????? | | ???????# ####### #??+??????????? | | ???????# #?????# ## ###+##?????????????? | | ???????# #?????# ##!= #??????????????????? | | ???????# #?????# ##+#??#??????????????????? | | ???????# ####### ##p#?????????????????????? | | ???????# + Y@%#??????????????+??+???? | | ???????# ####### ####?????????????????????? | | # #???????# #?????# #????????????????????????? | | # #########++####### #????????????????????????? | | #????????????????????????? | | #?????????????+??????????? | | ^^ #????????????????????????? | | ######################????????????????????????? | | #?????????????????????????????????????????????? | | #?????????????????????????????????????????????? | | #???????????????????????????????????????+?????? | | #??????????????????????????????????+??????????? | | #?????????????????????????????????????????????? | | #?????????????????????????????????????????????? | | #?????????????????????????????????????????????? | | #?????????????????????????????????????????????? | | #?????????????????????????????????????????????? | | #?????????????????????????????????????????????? | | #?????????????????????????????????????????????? | | #?????????????????????????????????????????????? | | #?????????????????????????????????????????????? | | #?????????????????????????????????????????????? | | #?????????????????????????????????????????????? | | #???????????????????????????????+?????????????? | | #?????????????????????????????????????????????? | +----------------------------------------------------+ Best States ------------- Heat Dissipation 59 Energy Generation 21 Energy Capacity 290 Matter Stores 300 Matter Capacity 300 Sight Range 16 Terrain Scan Density 10 Armor Coverage 600 Resistance: KI 40 Core Shielding 20 Phase Shifting 15 Evasion (%) 57 Melee Accuracy 5 Target Analysis 5 Recoil Reduction 2 Offensive Hacking 10 Defensive Hacking 10 Relay Coupler Types 7 Relay Coupler Value 170 Item Schematics ----------------- None Robot Schematics ------------------ None Fabricated ------------ Nothing Repaired ---------- Nothing Alien Tech Used ----------------- None Achievements -------------- None Challenges ------------ None Game ------ Seed ThiefRemoteRedirector Manual? 0 Play Time 01:28:47 Cumulative 559.0 hours Start 2025.06.23 @ 14:31:17 End 2025.06.23 @ 16:05:23 Sessions 1 Manual Loads 0 Difficulty Rogue Special Mode None Game No. 672 Rogue 672 Adventurer 0 Explorer 0 Win Type - Total 20 Types 14/0/5/1/0/0/0/0/0/0 Lore% 85 Gallery% 83 Achievement% 83 Wizard Run 0 Options --------- Layout 0 ASCII 0 Keyboard 0 Movement Numpad Keybinds 0 Fullscreen 1 Font 18/SmallcapsGlow Map View 76x50 Zoom Use 0% Tactical HUD 1 Map Filters NONE Filters NONE Steam 1 RUN: 916dba41-b471-4868-9f2e-a892c11e814b